[Event "POL-chT DMP Ekstraliga 2019"]
[Site "Katowice"]
[Date "2019.08.28"]
[Round "1.2"]
[White "Moranda, Wojciech"]
[Black "Hracek, Zbynek"]
[Result "1/2-1/2"]
[ECO "B54"]
[WhiteElo "2597"]
[BlackElo "2572"]
[Annotator "ChessBase"]
[PlyCount "128"]
[EventDate "2019.08.28"]
[EventType "team-tourn"]
[EventCountry "POL"]
[SourceTitle "playchess.com"]
[Source "ChessBase"]
[SourceQuality "1"]
[TimeControl "40/5400+30:1800+30"]

1. e4 {[%emt 0:00:00]} c5 {[%emt 0:01:25]} 2. Nf3 {[%emt 0:00:00]} d6 {[%emt 0:00:20]} 3. d4 {[%emt 0:00:00]} cxd4 {[%emt 0:00:08]} 4. Nxd4 {[%emt 0:00:06]} Nf6 {[%emt 0:00:05]} 5. f3 {[%emt 0:00:13]} Nc6 {[%emt 0:01:01]} 6. c4 {[%emt 0:00:20]} e6 {[%emt 0:05:11]} 7. Nc3 {[%emt 0:00:41]} Be7 {[%emt 0:00:04]} 8. Be3 {[%emt 0:00:13]} O-O {[%emt 0:00:13]} 9. Qd2 {[%emt 0:00:16]} d5 {[%emt 0:00:53]} 10. exd5 {[%emt 0:00:27]} exd5 {[%emt 0:00:05]} 11. O-O-O {[%emt 0:00:12]} Nxd4 {[%emt 0:05:58]} 12. Qxd4 {[%emt 0:00:33]} dxc4 {[%emt 0:03:55]} 13. Qxd8 {[%emt 0:00:52]} Rxd8 {[%emt 0:00:26]} 14. Rxd8+ {[%emt 0:01:01]} Bxd8 {[%emt 0:00:01]} 15. Bxc4 {[%emt 0:00:12]} Bd7 {[%emt 0:04:03]} 16. Rd1 {[%emt 0:07:19]} Rc8 {[%emt 0:01:22]} 17. Bd4 {[%emt 0:02:38]} Rxc4 {[%emt 0:06:54]} 18. Bxf6 {[%emt 0:00:23]} Bxf6 {[%emt 0:00:04]} 19. Rxd7 {[%emt 0:00:13]} h5 {[%emt 0:00:10]} 20. Kc2 {[%emt 0:14:53]} b5 {[%emt 0:12:42]} 21. Rxa7 {[%emt 0:20:51]} b4 {[%emt 0:00:11]} 22. Ra4 {[%emt 0:00:15]} Bxc3 {[%emt 0:02:41]} 23. bxc3 {[%emt 0:00:49]} Rxc3+ {[%emt 0:00:05]} 24. Kd2 {[%emt 0:02:23]} h4 {[%emt 0:03:58]} 25. h3 {[%emt 0:04:14]} Kf8 {[%emt 0:19:04]} 26. Rxb4 {[%emt 0:02:13]} Ra3 {[%emt 0:00:03]} 27. Rb2 {[%emt 0:00:31]} Ke7 {[%emt 0:00:20]} 28. Kc1 {[%emt 0:07:35]} Kd6 {[%emt 0:11:26]} 29. Re2 {[%emt 0:04:00]} Kd5 {[%emt 0:13:28]} 30. Kb2 {[%emt 0:01:51]} Rd3 {[%emt 0:01:54]} 31. Rc2 {[%emt 0:12:51]} g5 {[%emt 0:00:38]} 32. a4 {[%emt 0:01:05]} Kd6 {[%emt 0:00:13]} 33. Re2 {[%emt 0:04:05]} f6 {[%emt 0:00:52]} 34. Kb1 {[%emt 0:01:29]} Ra3 {[%emt 0:05:46]} 35. Ra2 {[%emt 0:01:08]} Re3 {[%emt 0:00:08]} 36. Kc2 {[%emt 0:02:21]} Kc6 {[%emt 0:01:06]} 37. a5 {[%emt 0:04:27]} Kb7 {[%emt 0:00:27]} 38. Kd2 {[%emt 0:03:30]} Rb3 {[%emt 0:00:15]} 39. a6+ {[%emt 0:00:20]} Ka7 {[%emt 0:00:04]} 40. Ke2 {[%emt 0:00:00]} Rc3 {[%emt 0:00:00]} 41. Kf2 {[%emt 0:01:45]} Rc6 {[%emt 0:13:30]} 42. Ke3 {[%emt 0:08:58]} Re6+ {[%emt 0:00:24]} 43. Kd3 {[%emt 0:00:49]} Re5 {[%emt 0:01:45]} 44. Kd4 {[%emt 0:04:33]} Re1 {[%emt 0:00:43]} 45. Kd3 {[%emt 0:03:23]} Re5 {[%emt 0:01:21]} 46. Ra4 {[%emt 0:04:28]} Rb5 {[%emt 0:01:09]} 47. Ke2 {[%emt 0:03:17]} Rb2+ {[%emt 0:03:46]} 48. Kf1 {[%emt 0:00:10]} Rb1+ {[%emt 0:00:07]} 49. Kf2 {[%emt 0:00:04]} Rb2+ {[%emt 0:00:08]} 50. Kg1 {[%emt 0:00:04]} Rb1+ {[%emt 0:01:08]} 51. Kh2 {[%emt 0:00:04]} Rb5 {[%emt 0:07:08]} 52. f4 {[%emt 0:00:34]} Rc5 {[%emt 0:02:06]} 53. Re4 {[%emt 0:05:15]} Rf5 {[%emt 0:00:05]} 54. fxg5 {[%emt 0:01:31]} fxg5 {[%emt 0:00:01]} 55. Re6 {[%emt 0:01:08]} Ra5 {[%emt 0:02:24]} 56. Rg6 {[%emt 0:01:27]} Rb5 {[%emt 0:00:20]} 57. Kg1 {[%emt 0:01:14]} Rf5 {[%emt 0:01:39]} 58. Rd6 {[%emt 0:01:17]} Ra5 {[%emt 0:00:45]} 59. Rg6 {[%emt 0:01:04]} Rf5 {[%emt 0:00:07]} 60. g3 {[%emt 0:00:23]} Ra5 {[%emt 0:00:47]} 61. gxh4 {[%emt 0:00:29]} gxh4 {[%emt 0:00:03]} 62. Rh6 {[%emt 0:00:08]} Rxa6 {[%emt 0:01:02]} 63. Rxh4 {[%emt 0:00:05]} Kb7 {[%emt 0:00:30]} 64. Rd4 {[%emt 0:02:00]} Kc7 1/2-1/2

[Event "POL-chT DMP Ekstraliga 2019"]
[Site "Katowice"]
[Date "2019.08.28"]
[Round "1.17"]
[White "Kantans, Toms"]
[Black "Sadzikowski, Daniel"]
[Result "1/2-1/2"]
[ECO "B51"]
[WhiteElo "2490"]
[BlackElo "2502"]
[Annotator "ChessBase"]
[PlyCount "162"]
[EventDate "2019.08.28"]
[EventType "team-tourn"]
[EventCountry "POL"]
[SourceTitle "playchess.com"]
[Source "ChessBase"]
[SourceQuality "1"]
[TimeControl "40/5400+30:1800+30"]

1. e4 c5 {[%emt 0:00:00]} 2. Nf3 {[%emt 0:00:00]} d6 {[%emt 0:00:00]} 3. Bb5+ {[%emt 0:00:19]} Nd7 {[%emt 0:00:00]} 4. O-O {[%emt 0:00:12]} a6 {[%emt 0:00:00]} 5. Bd3 {[%emt 0:00:05]} Ngf6 {[%emt 0:03:10]} 6. Re1 {[%emt 0:00:35]} g6 {[%emt 0:01:37]} 7. c3 {[%emt 0:01:56]} Bh6 {[%emt 0:00:19]} 8. a4 {[%emt 0:17:29]} Ne5 {[%emt 0:14:38]} 9. Nxe5 {[%emt 0:03:32]} dxe5 {[%emt 0:00:03]} 10. Bc4 {[%emt 0:00:11]} O-O {[%emt 0:05:37]} 11. Na3 {[%emt 0:06:11]} Qb6 {[%emt 0:07:21]} 12. d3 {[%emt 0:07:05]} Bg4 {[%emt 0:04:16]} 13. Qc2 {[%emt 0:02:30]} Bxc1 {[%emt 0:00:10]} 14. Qxc1 {[%emt 0:00:05]} Rad8 {[%emt 0:03:23]} 15. Qg5 {[%emt 0:06:54]} Be6 {[%emt 0:04:15]} 16. Qxe5 {[%emt 0:25:59]} Nd7 {[%emt 0:03:30]} 17. Qg5 {[%emt 0:00:06]} Qxb2 {[%emt 0:00:59]} 18. Rec1 {[%emt 0:02:36]} Bxc4 {[%emt 0:13:32]} 19. Nxc4 {[%emt 0:00:40]} Qe2 {[%emt 0:00:05]} 20. Rd1 {[%emt 0:01:25]} Qc2 {[%emt 0:01:13]} 21. Rac1 {[%emt 0:09:16]} Qxa4 {[%emt 0:00:49]} 22. Qxe7 {[%emt 0:00:22]} Rde8 {[%emt 0:15:12]} 23. Qh4 {[%emt 0:01:14]} b5 {[%emt 0:02:46]} 24. Ne3 {[%emt 0:00:46]} b4 {[%emt 0:02:37]} 25. Ra1 {[%emt 0:04:08]} Qc6 {[%emt 0:02:09]} 26. Nd5 {[%emt 0:00:54]} Qd6 {[%emt 0:00:05]} 27. cxb4 {[%emt 0:01:03]} cxb4 {[%emt 0:00:06]} 28. Rdb1 {[%emt 0:01:04]} Rb8 {[%emt 0:03:47]} 29. d4 {[%emt 0:00:19]} b3 {[%emt 0:04:21]} 30. Qe7 {[%emt 0:01:26]} Qxe7 {[%emt 0:00:38]} 31. Nxe7+ {[%emt 0:00:02]} Kg7 {[%emt 0:00:45]} 32. f3 {[%emt 0:01:42]} Rb7 {[%emt 0:03:58]} 33. Nc6 {[%emt 0:04:52]} b2 {[%emt 0:02:47]} 34. Rxa6 {[%emt 0:00:48]} Nb8 {[%emt 0:01:22]} 35. Ra7 {[%emt 0:00:57]} Rb6 {[%emt 0:00:17]} 36. Ne7 {[%emt 0:00:41]} Rd8 {[%emt 0:01:09]} 37. Ra2 {[%emt 0:00:31]} Nc6 {[%emt 0:01:02]} 38. Nd5 {[%emt 0:00:25]} Rb3 {[%emt 0:00:20]} 39. Rbxb2 {[%emt 0:00:20]} Rxb2 {[%emt 0:00:09]} 40. Rxb2 {[%emt 0:00:00]} Nxd4 {[%emt 0:00:00]} 41. Kf2 {[%emt 0:04:24]} h5 {[%emt 0:00:14]} 42. h4 {[%emt 0:03:55]} Ne6 {[%emt 0:00:16]} 43. Ne3 {[%emt 0:04:46]} Nf4 {[%emt 0:01:18]} 44. Ra2 {[%emt 0:00:39]} Rc8 {[%emt 0:00:20]} 45. Kg3 {[%emt 0:01:19]} Ne6 {[%emt 0:00:14]} 46. Nd5 {[%emt 0:01:19]} Rb8 {[%emt 0:00:14]} 47. Ra7 {[%emt 0:02:17]} Rb3 {[%emt 0:01:53]} 48. Ne7 {[%emt 0:01:44]} Rc3 {[%emt 0:02:23]} 49. Ra8 {[%emt 0:00:38]} Rc7 {[%emt 0:01:40]} 50. Nd5 {[%emt 0:03:14]} Rb7 {[%emt 0:00:11]} 51. Rc8 {[%emt 0:01:35]} Rb3 {[%emt 0:04:30]} 52. Kh2 {[%emt 0:01:23]} Rd3 {[%emt 0:02:04]} 53. Ra8 {[%emt 0:00:55]} Rd2 {[%emt 0:02:01]} 54. Ra5 {[%emt 0:02:42]} Rc2 {[%emt 0:02:49]} 55. Kg3 {[%emt 0:01:40]} Nd4 {[%emt 0:01:30]} 56. Ra3 {[%emt 0:02:13]} Ne2+ {[%emt 0:01:50]} 57. Kh3 {[%emt 0:00:45]} Nd4 {[%emt 0:02:41]} 58. Rd3 {[%emt 0:00:43]} Ne6 {[%emt 0:00:30]} 59. Kg3 {[%emt 0:00:11]} Re2 {[%emt 0:00:26]} 60. Ne3 {[%emt 0:00:20]} Ra2 {[%emt 0:00:57]} 61. Nc4 {[%emt 0:00:02]} Rxg2+ {[%emt 0:00:47]} 62. Kxg2 {[%emt 0:00:11]} Nf4+ {[%emt 0:00:04]} 63. Kf2 {[%emt 0:00:16]} Nxd3+ {[%emt 0:00:05]} 64. Ke3 {[%emt 0:00:49]} Nc5 {[%emt 0:01:55]} 65. f4 {[%emt 0:01:03]} Kf6 {[%emt 0:00:52]} 66. Kd4 {[%emt 0:00:32]} Ne6+ {[%emt 0:00:05]} 67. Ke3 {[%emt 0:00:03]} Nc5 {[%emt 0:00:42]} 68. Nd2 {[%emt 0:01:47]} Ke7 {[%emt 0:00:57]} 69. Nf3 {[%emt 0:00:16]} Ne6 {[%emt 0:00:38]} 70. Nd2 {[%emt 0:01:50]} Nc7 {[%emt 0:00:32]} 71. Nf1 {[%emt 0:00:05]} Ke6 {[%emt 0:02:09]} 72. Ng3 {[%emt 0:00:26]} Nb5 {[%emt 0:00:18]} 73. Ne2 {[%emt 0:01:18]} Nd6 {[%emt 0:01:21]} 74. Nd4+ {[%emt 0:00:09]} Ke7 {[%emt 0:00:28]} 75. e5 {[%emt 0:00:19]} Nf5+ {[%emt 0:03:13]} 76. Nxf5+ {[%emt 0:00:05]} gxf5 {[%emt 0:00:01]} 77. Kd3 {[%emt 0:02:07]} Kd7 {[%emt 0:00:12]} 78. Kc4 {[%emt 0:00:15]} Kc8 {[%emt 0:00:11]} 79. Kd5 {[%emt 0:00:39]} Kd7 {[%emt 0:00:05]} 80. Kc5 {[%emt 0:00:03]} Kc7 {[%emt 0:00:08]} 81. Kd5 {[%emt 0:00:08]} Kd7 {[%emt 0:00:05] Ke4} 1/2-1/2

[Event "POL-chT DMP Ekstraliga 2019"]
[Site "Katowice"]
[Date "2019.08.28"]
[Round "1.30"]
[White "Antolak, Julia"]
[Black "Bartel, Marta"]
[Result "1-0"]
[ECO "B61"]
[WhiteElo "2240"]
[BlackElo "2244"]
[Annotator "NA"]
[PlyCount "71"]
[EventDate "2019.08.28"]
[EventType "team-tourn"]
[EventCountry "POL"]
[SourceTitle "playchess.com"]
[Source "ChessBase"]
[SourceQuality "1"]
[TimeControl "40/5400+30:1800+30"]

1. e4 {[%emt 0:00:00]} c5 {[%emt 0:00:00]} 2. Nf3 {[%emt 0:00:00]} d6 {[%emt 0:00:00]} 3. d4 {[%emt 0:00:00]} cxd4 {[%emt 0:00:05]} 4. Nxd4 {[%emt 0:00:03]} Nf6 {[%emt 0:00:06]} 5. Nc3 {[%emt 0:00:07]} Nc6 {[%emt 0:00:07]} 6. Bg5 {[%emt 0:00:43]} Bd7 {[%emt 0:00:16]} 7. Qd2 {[%emt 0:01:39]} h6 {[%emt 0:00:08]} 8. Bxf6 {[%emt 0:04:27]} gxf6 {[%emt 0:00:06]} 9. O-O-O {[%emt 0:01:39]} Nxd4 {[%emt 0:00:09]} 10. Qxd4 {[%emt 0:00:06]} Qa5 {[%emt 0:00:05]} 11. Bc4 {[%emt 0:11:01]} Rc8 {[%emt 0:04:22]} 12. Bb3 {[%emt 0:03:50]} Qc5 {[%emt 0:02:37]} 13. Qd2 {[%emt 0:06:42]} h5 {[%emt 0:06:38]} 14. f4 {[%emt 0:04:16]} Bg7 {[%emt 0:25:04]} 15. Kb1 {[%emt 0:08:48]} b5 {[%emt 0:08:58]} 16. a4 {[%emt 0:07:48]} bxa4 {[%emt 0:07:03]} 17. Nxa4 {[%emt 0:00:48]} Qc7 {[%emt 0:01:35]} 18. f5 {[%emt 0:09:01]} Bh6 {[%emt 0:16:16]} 19. Qd5 {[%emt 0:04:36]} Rh7 {[%emt 0:01:16]} 20. g3 {[%emt 0:01:36]} Kf8 {[%emt 0:09:29]} 21. Nc3 {[%emt 0:06:00]} Be3 {[%emt 0:07:31]} 22. Qd3 {[%emt 0:03:35]} Bc5 {[%emt 0:00:40]} 23. g4 {[%emt 0:00:19]} hxg4 {[%emt 0:01:37]} 24. Qg3 {[%emt 0:01:03]} Rb8 {[%emt 0:06:52]} 25. Nd5 {[%emt 0:04:23]} Qd8 {[%emt 0:00:34]} 26. h3 {[%emt 0:04:20]} e6 {[%emt 0:00:42]} 27. hxg4 {[%emt 0:01:31]} Rg7 {[%emt 0:00:25]} 28. Rh8+ {[%emt 0:02:25]} Rg8 {[%emt 0:00:05]} 29. Rxg8+ {[%emt 0:00:38]} Kxg8 {[%emt 0:00:01]} 30. Nf4 {[%emt 0:00:26]} Kf8 {[%emt 0:01:30]} 31. Rh1 {[%emt 0:04:54]} Qb6 {[%emt 0:00:27]} 32. fxe6 {[%emt 0:00:53]} Bxe6 {[%emt 0:00:16]} 33. Nxe6+ {[%emt 0:01:21]} fxe6 {[%emt 0:00:01]} 34. Qh4 {[%emt 0:00:35]} Ke7 {[%emt 0:01:03]} 35. Qh7+ {[%emt 0:00:07]} Kd8 {[%emt 0:00:05]} 36. Qf7 {[%emt 0:00:18]} 1-0

[Event "POL-chT DMP Ekstraliga 2019"]
[Site "Katowice"]
[Date "2019.08.29"]
[Round "2.1"]
[White "Mista, Aleksander"]
[Black "Heberla, Bartlomiej"]
[Result "1/2-1/2"]
[ECO "C42"]
[WhiteElo "2599"]
[BlackElo "2552"]
[Annotator "ChessBase"]
[PlyCount "119"]
[EventDate "2019.08.28"]
[EventType "team-tourn"]
[EventCountry "POL"]
[SourceTitle "playchess.com"]
[Source "ChessBase"]
[SourceQuality "1"]
[TimeControl "40/5400+30:1800+30"]

1. e4 {[%emt 0:00:00]} e5 {[%emt 0:00:00]} 2. Nf3 {[%emt 0:00:00]} Nf6 {[%emt 0:00:03]} 3. Nxe5 {[%emt 0:00:00]} d6 {[%emt 0:00:05]} 4. Nf3 {[%emt 0:00:00]} Nxe4 {[%emt 0:00:03]} 5. d4 {[%emt 0:00:00]} d5 {[%emt 0:00:07]} 6. Bd3 {[%emt 0:00:00]} Bd6 {[%emt 0:00:12]} 7. O-O {[%emt 0:00:01]} O-O {[%emt 0:00:05]} 8. c4 {[%emt 0:00:03]} c6 {[%emt 0:00:04]} 9. cxd5 {[%emt 0:00:11]} cxd5 {[%emt 0:00:06]} 10. Nc3 {[%emt 0:00:02]} Re8 {[%emt 0:00:44]} 11. Re1 {[%emt 0:00:11]} Nxc3 {[%emt 0:00:08]} 12. Rxe8+ {[%emt 0:00:08]} Qxe8 {[%emt 0:00:10]} 13. bxc3 {[%emt 0:00:02]} Nd7 {[%emt 0:05:53]} 14. Qb3 {[%emt 0:01:53]} Nb6 {[%emt 0:05:01]} 15. Ba3 {[%emt 0:03:53]} Bxa3 {[%emt 0:00:02]} 16. Qxa3 {[%emt 0:00:06]} Be6 {[%emt 0:00:06]} 17. Re1 Qd8 {[%emt 0:25:28]} 18. h4 {[%emt 0:16:50]} h6 {[%emt 0:01:28]} 19. Bb1 {[%emt 0:04:04]} Nc4 {[%emt 0:05:00]} 20. Qb3 {[%emt 0:01:24]} Nd6 {[%emt 0:01:13]} 21. Qc2 {[%emt 0:23:23]} Bf5 {[%emt 0:07:33]} 22. Qb3 {[%emt 0:00:30]} Be6 {[%emt 0:10:04]} 23. Qc2 {[%emt 0:00:12]} Bf5 {[%emt 0:02:53]} 24. Qb3 {[%emt 0:00:22]} Bxb1 {[%emt 0:01:44]} 25. Rxb1 {[%emt 0:00:22]} Qa5 {[%emt 0:00:10]} 26. Re1 {[%emt 0:04:30]} Rc8 {[%emt 0:04:37]} 27. Re3 {[%emt 0:13:58]} Qb5 {[%emt 0:09:12]} 28. Qc2 {[%emt 0:03:25]} Qc4 {[%emt 0:07:51]} 29. Qb1 {[%emt 0:05:37]} Qb5 {[%emt 0:00:56]} 30. Qc2 {[%emt 0:02:38]} Ne4 {[%emt 0:05:59]} 31. Nd2 {[%emt 0:05:17]} Nxd2 {[%emt 0:00:32]} 32. Qxd2 {[%emt 0:00:03]} Re8 {[%emt 0:00:11]} 33. Rxe8+ {[%emt 0:03:43]} Qxe8 {[%emt 0:00:01]} 34. Qf4 {[%emt 0:01:08]} a6 {[%emt 0:05:38]} 35. Kh2 {[%emt 0:00:31]} Qc6 {[%emt 0:00:15]} 36. Qe5 {[%emt 0:01:21]} Qd7 {[%emt 0:02:07]} 37. f3 {[%emt 0:01:49]} f6 {[%emt 0:00:06]} 38. Qb8+ {[%emt 0:00:04]} Kf7 {[%emt 0:00:09]} 39. h5 {[%emt 0:01:26]} Ke7 {[%emt 0:02:51]} 40. Kg1 {[%emt 0:00:00]} Kf7 {[%emt 0:00:00]} 41. Kf2 {[%emt 0:06:28]} Qc6 {[%emt 0:03:17]} 42. Kg3 {[%emt 0:02:38]} b5 {[%emt 0:01:01]} 43. Qa7+ {[%emt 0:03:05]} Kg8 {[%emt 0:00:55]} 44. Qc5 {[%emt 0:00:28]} Qe6 {[%emt 0:00:47]} 45. Kf4 {[%emt 0:02:15]} Kh7 {[%emt 0:05:12]} 46. g4 {[%emt 0:00:15]} g5+ {[%emt 0:09:16]} 47. hxg6+ {[%emt 0:00:04]} Kxg6 {[%emt 0:00:03]} 48. Qf8 {[%emt 0:00:41]} Kh7 {[%emt 0:00:18]} 49. a3 {[%emt 0:02:12]} Kg6 {[%emt 0:04:33]} 50. Qh8 {[%emt 0:00:51]} Qd6+ {[%emt 0:05:30]} 51. Ke3 {[%emt 0:00:04]} Qe6+ {[%emt 0:00:10]} 52. Kf2 {[%emt 0:05:21]} f5 {[%emt 0:00:08]} 53. gxf5+ {[%emt 0:00:32]} Kxf5 {[%emt 0:02:05]} 54. Qg7 {[%emt 0:01:08]} h5 {[%emt 0:01:07]} 55. Qh8 {[%emt 0:04:38]} Kg6 {[%emt 0:00:35]} 56. f4 {[%emt 0:01:53]} Qf5 {[%emt 0:02:08]} 57. Qg8+ {[%emt 0:02:05]} Kh6 {[%emt 0:00:21]} 58. Qh8+ {[%emt 0:00:06]} Kg6 {[%emt 0:00:04]} 59. Qg8+ {[%emt 0:00:41]} Kh6 {[%emt 0:00:02]} 60. Qh8+ {[%emt 0:00:06]} 1/2-1/2

[Event "POL-chT DMP Ekstraliga 2019"]
[Site "Katowice"]
[Date "2019.08.29"]
[Round "2.2"]
[White "Maksimenko, Andrei"]
[Black "Moranda, Wojciech"]
[Result "1/2-1/2"]
[ECO "A46"]
[WhiteElo "2468"]
[BlackElo "2597"]
[Annotator "ChessBase"]
[PlyCount "43"]
[EventDate "2019.08.28"]
[EventType "team-tourn"]
[EventCountry "POL"]
[SourceTitle "playchess.com"]
[Source "ChessBase"]
[SourceQuality "1"]
[TimeControl "40/5400+30:1800+30"]

1. d4 {[%emt 0:00:00]} Nf6 {[%emt 0:00:00]} 2. Nf3 {[%emt 0:00:02]} e6 {[%emt 0:00:00]} 3. g3 {[%emt 0:00:17]} d5 {[%emt 0:00:32]} 4. Bg2 {[%emt 0:00:27]} b5 {[%emt 0:00:52]} 5. O-O {[%emt 0:00:21]} Nbd7 {[%emt 0:00:32]} 6. a4 {[%emt 0:02:44]} b4 {[%emt 0:01:12]} 7. c3 {[%emt 0:01:58]} Ba6 {[%emt 0:18:04]} 8. Bf4 c5 {[%emt 0:16:36]} 9. cxb4 {[%emt 0:24:35]} cxb4 {[%emt 0:00:27]} 10. Nbd2 {[%emt 0:00:07]} Rc8 {[%emt 0:02:40]} 11. Re1 {[%emt 0:06:51]} Be7 {[%emt 0:04:34]} 12. Ne5 {[%emt 0:09:01]} O-O {[%emt 0:08:47]} 13. Nxd7 {[%emt 0:05:19]} Nxd7 {[%emt 0:13:59]} 14. e4 {[%emt 0:11:31]} Nf6 {[%emt 0:04:02]} 15. Be5 {[%emt 0:07:06]} Bd3 {[%emt 0:06:48]} 16. Bxf6 {[%emt 0:07:05]} Bxf6 {[%emt 0:00:25]} 17. e5 {[%emt 0:11:06]} Be7 {[%emt 0:00:40]} 18. Qf3 {[%emt 0:01:52]} Bg6 {[%emt 0:02:14]} 19. Rec1 {[%emt 0:00:51]} Bg5 {[%emt 0:06:38]} 20. Qd1 {[%emt 0:00:58]} Qb6 {[%emt 0:03:06]} 21. h4 {[%emt 0:01:30]} Be7 {[%emt 0:01:34]} 22. Nb3 {[%emt 0:01:04]} 1/2-1/2

[Event "POL-chT DMP Ekstraliga 2019"]
[Site "Katowice"]
[Date "2019.08.29"]
[Round "2.3"]
[White "Dziuba, Marcin"]
[Black "Piesik, Piotr"]
[Result "1-0"]
[ECO "A45"]
[WhiteElo "2568"]
[BlackElo "2409"]
[Annotator "ChessBase"]
[PlyCount "123"]
[EventDate "2019.08.28"]
[EventType "team-tourn"]
[EventCountry "POL"]
[SourceTitle "playchess.com"]
[Source "ChessBase"]
[SourceQuality "1"]
[TimeControl "40/5400+30:1800+30"]

1. d4 {[%emt 0:00:00]} Nf6 {[%emt 0:07:34]} 2. Bf4 {[%emt 0:00:38]} e6 {[%emt 0:01:27]} 3. e3 b6 {[%emt 0:00:22]} 4. Nf3 {[%emt 0:02:53]} Bb7 {[%emt 0:04:39]} 5. h3 {[%emt 0:03:31]} Be7 {[%emt 0:17:56]} 6. Bd3 {[%emt 0:06:02]} Ne4 {[%emt 0:03:22]} 7. Nbd2 f5 {[%emt 0:06:51]} 8. Qe2 {[%emt 0:09:19]} d6 {[%emt 0:06:09]} 9. Rg1 Nd7 10. g4 {[%emt 0:08:09]} O-O {[%emt 0:01:44]} 11. O-O-O Kh8 {[%emt 0:05:15]} 12. gxf5 {[%emt 0:20:02]} exf5 {[%emt 0:00:25]} 13. Bxe4 {[%emt 0:00:00]} fxe4 {[%emt 0:01:53]} 14. Ng5 {[%emt 0:00:00]} Bxg5 {[%emt 0:04:10]} 15. Rxg5 {[%emt 0:01:11]} Nf6 {[%emt 0:00:00]} 16. Rdg1 {[%emt 0:02:52]} Rf7 {[%emt 0:05:59]} 17. c4 {[%emt 0:04:15]} Qe7 {[%emt 0:05:19]} 18. h4 g6 {[%emt 0:01:13]} 19. c5 {[%emt 0:08:44]} bxc5 {[%emt 0:02:17]} 20. dxc5 {[%emt 0:04:23]} Nh5 21. Bh2 {[%emt 0:00:49]} Raf8 {[%emt 0:01:05]} 22. R1g2 {[%emt 0:05:34]} Rf5 {[%emt 0:06:04]} 23. Qc4 {[%emt 0:01:10]} Bd5 24. Qd4+ Kg8 {[%emt 0:01:12]} 25. cxd6 {[%emt 0:01:49]} cxd6 {[%emt 0:00:09]} 26. Nb1 {[%emt 0:00:41]} Rxg5 {[%emt 0:04:19]} 27. Rxg5 {[%emt 0:01:50]} Bb7 28. Bxd6 {[%emt 0:03:00]} Rc8+ {[%emt 0:00:51]} 29. Rc5 Qe6 {[%emt 0:03:39]} 30. Rxc8+ {[%emt 0:01:47]} Qxc8+ {[%emt 0:00:43]} 31. Nc3 {[%emt 0:00:13]} a6 {[%emt 0:00:08]} 32. Be5 Kf7 {[%emt 0:01:29]} 33. Kd2 {[%emt 0:07:47]} Qc6 {[%emt 0:01:33]} 34. Na4 Ke6 {[%emt 0:00:04]} 35. Nc5+ {[%emt 0:06:51]} Kf5 {[%emt 0:01:01]} 36. Bd6 {[%emt 0:03:24]} Kg4 {[%emt 0:03:18]} 37. Be7 {[%emt 0:00:55]} a5 {[%emt 0:02:31]} 38. a4 {[%emt 0:00:02]} Kf3 {[%emt 0:00:30]} 39. Ke1 {[%emt 0:00:30]} Bc8 {[%emt 0:00:30]} 40. Qd1+ {[%emt 0:00:30]} Kg2 {[%emt 0:00:30]} 41. Qd2 Bf5 42. Qxa5 {[%emt 0:26:47]} Qd5 {[%emt 0:10:01]} 43. Qd2 {[%emt 0:00:05]} Qa2 {[%emt 0:00:49]} 44. f3+ {[%emt 0:01:05]} Kh3 {[%emt 0:10:39]} 45. fxe4 {[%emt 0:04:04]} Bg4 {[%emt 0:03:59]} 46. Qc1 {[%emt 0:00:11]} Ng3 {[%emt 0:02:27]} 47. Bd6 {[%emt 0:01:42]} Ne2 {[%emt 0:03:04]} 48. Qc2 {[%emt 0:00:01]} Kxh4 {[%emt 0:00:26]} 49. Kd2 {[%emt 0:00:16]} Qa1 {[%emt 0:01:07]} 50. e5 {[%emt 0:00:44]} Ng1 {[%emt 0:01:54]} 51. Kc3 {[%emt 0:00:53]} Qe1+ {[%emt 0:00:38]} 52. Kc4 {[%emt 0:00:36]} Qxe3 {[%emt 0:00:36]} 53. Kb5 {[%emt 0:00:26]} Nf3 {[%emt 0:00:18]} 54. Kb6 {[%emt 0:00:19]} Kh3 {[%emt 0:02:32]} 55. Qc3 {[%emt 0:00:26]} Qe2 {[%emt 0:02:02]} 56. a5 {[%emt 0:00:14]} Kg2 {[%emt 0:00:33]} 57. a6 {[%emt 0:00:13]} Nd2 {[%emt 0:00:06]} 58. a7 {[%emt 0:00:30]} Bf3 {[%emt 0:00:04]} 59. Kc7 {[%emt 0:00:40]} Nb1 {[%emt 0:01:24]} 60. Qd3 {[%emt 0:00:17]} Qxb2 {[%emt 0:00:16]} 61. Qxf3+ {[%emt 0:00:08]} Kxf3 {[%emt 0:00:07]} 62. a8=Q+ {[%emt 0:00:06]} 1-0

[Event "POL-chT DMP Ekstraliga 2019"]
[Site "Katowice"]
[Date "2019.08.29"]
[Round "2.4"]
[White "Simantsev, Mikhail"]
[Black "Michalik, Peter"]
[Result "0-1"]
[ECO "D37"]
[WhiteElo "2346"]
[BlackElo "2573"]
[Annotator "ChessBase"]
[PlyCount "70"]
[EventDate "2019.08.28"]
[EventType "team-tourn"]
[EventCountry "POL"]
[SourceTitle "playchess.com"]
[Source "ChessBase"]
[SourceQuality "1"]
[TimeControl "40/5400+30:1800+30"]

1. d4 {[%emt 0:00:00]} Nf6 2. c4 e6 {[%emt 0:00:00]} 3. Nf3 {[%emt 0:00:52]} d5 {[%emt 0:00:00]} 4. Nc3 {[%emt 0:00:57]} Be7 {[%emt 0:00:12]} 5. Bf4 {[%emt 0:00:27]} O-O {[%emt 0:00:09]} 6. e3 {[%emt 0:00:06]} b6 {[%emt 0:00:05]} 7. cxd5 {[%emt 0:06:00]} Nxd5 {[%emt 0:01:03]} 8. Nxd5 Qxd5 {[%emt 0:00:06]} 9. Bd3 {[%emt 0:03:10]} Qa5+ {[%emt 0:00:14]} 10. Nd2 {[%emt 0:04:18]} Ba6 {[%emt 0:07:26]} 11. Bxa6 {[%emt 0:01:42]} Qxa6 {[%emt 0:09:53]} 12. Qe2 {[%emt 0:14:50]} Rc8 13. a3 Qxe2+ {[%emt 0:20:17]} 14. Kxe2 {[%emt 0:11:35]} Nd7 {[%emt 0:00:04]} 15. Rac1 {[%emt 0:09:43]} c5 {[%emt 0:02:53]} 16. dxc5 {[%emt 0:00:01]} Nxc5 {[%emt 0:00:14]} 17. Be5 {[%emt 0:01:06]} f6 {[%emt 0:11:33]} 18. Bd4 {[%emt 0:00:50]} Nd7 {[%emt 0:06:46]} 19. f4 {[%emt 0:05:45]} Kf7 {[%emt 0:04:43]} 20. Nb3 {[%emt 0:09:18]} e5 21. fxe5 {[%emt 0:00:02]} fxe5 {[%emt 0:00:36]} 22. Bc3 Ke6 23. Bd2 {[%emt 0:04:55]} Bd6 {[%emt 0:02:53]} 24. h3 {[%emt 0:13:25]} Nf6 {[%emt 0:07:22]} 25. Rxc8 Rxc8 {[%emt 0:00:05]} 26. Rc1 {[%emt 0:01:43]} Rxc1 27. Bxc1 {[%emt 0:02:33]} Kd5 {[%emt 0:02:13]} 28. Kd3 {[%emt 0:02:44]} e4+ {[%emt 0:01:46]} 29. Kc2 {[%emt 0:00:50]} Nh5 30. Nd4 {[%emt 0:06:32]} Nf4 {[%emt 0:02:14]} 31. Nf5 {[%emt 0:00:30]} Nxg2 {[%emt 0:00:30]} 32. Nxg7 {[%emt 0:00:30]} Bc5 {[%emt 0:03:00]} 33. Ne8 Ke5 {[%emt 0:00:07]} 34. b4 {[%emt 0:01:55]} Bxe3 {[%emt 0:00:08]} 35. Bb2+ {[%emt 0:00:37]} Bd4 0-1